Cogmind - Beta 13 @@@ ROGUE MODE // 2024.04.02 @ 22:12:13 Player: Simyon Result: Destroyed by G-34 Mercenary with Small Laser Performance ------------- Evolutions (0) 0 Regions Visited (2) 400 Robots Destroyed (29) 145 Value Destroyed (750) 750 Prototype IDs (0) 0 Alien Tech Used (0) 0 Bonus (0) 0 TOTAL SCORE: 1295 Bonus ------- None Cogmind --------- Core Integrity 0/250 Matter 262/300 Energy 265/265 System Corruption 0% Temperature Cool (19) Movement Walking (330) Ox3 Location -10/Mines Parts ------- > --- POWER (1) -------- Improved Ion Engine > --- PROPULSION (2) --- Aluminum Leg > --- UTILITY (2) ------ Large Storage Unit Hacking Suite > --- WEAPON (2) ------- Assault Rifle Rocket Launcher > --- INVENTORY (15) --- Aluminum Leg Aluminum Leg Hover Unit Hacking Suite Small Laser Assault Rifle Assault Rifle Assault Rifle Improved Light Cannon Datajack Hammer Peak State ------------ > --- POWER ------------ Improved Ion Engine > --- PROPULSION ------- Aluminum Leg Aluminum Leg > --- UTILITY ---------- Large Storage Unit Hacking Suite > --- WEAPON ----------- Assault Rifle Assault Rifle > --- INVENTORY -------- Aluminum Leg Aluminum Leg Hover Unit Small Laser Assault Rifle Assault Rifle Improved Light Cannon Datajack Hammer [Rating: 11] Favorites ----------- Power Improved Ion Engine Engine Improved Ion Engine Propulsion Aluminum Leg Leg Aluminum Leg Utility Small Storage Unit Storage Small Storage Unit Hackware Hacking Suite Weapon Assault Rifle Ballistic Gun Assault Rifle Ballistic Cannon Improved Light Cannon Launcher Grenade Launcher Build | -11 -10 -10 ------- Run | Yrd Mat Min Slots Evolved . | . . . Power . | . . . Propulsion . | . . . Utility . | . . . Weapon . | . . . Parts Attached 25 | 6 18 1 Power 5 | 1 4 . Engine 5 | 1 4 . Core . | . . . Reactor . | . . . Propulsion 6 | 2 4 . Treads . | . . . Leg 6 | 2 4 . Wheel . | . . . Hover . | . . . Flight . | . . . Utility 3 | 1 2 . Device . | . . . Storage 2 | 1 1 . Processor . | . . . Hackware 1 | . 1 . Protection . | . . . Artifact . | . . . Weapon 11 | 2 8 1 Energy Gun . | . . . Energy Cannon . | . . . Ballistic Gun 8 | 2 6 . Ballistic Cannon 1 | . 1 . Launcher 2 | . 1 1 Special Weapon . | . . . Impact Weapon . | . . . Slashing Weapon . | . . . Piercing Weapon . | . . . Special Melee Weapon . | . . . Unidentified Prototypes . | . . . Parts Lost 4 | . 3 1 Power . | . . . Propulsion 1 | . . 1 Utility . | . . . Weapon 3 | . 3 . Highest Loss Streak 2 | . 2 1 To Critical Strikes . | . . . Average Slot Usage (%) 86 | . 85 98 Engine 13 | . 13 14 Leg 27 | . 27 26 Storage 14 | . 14 14 Hackware 1 | . 1 14 Ballistic Gun 26 | . 26 27 Launcher 1 | . 1 . Naked Turns . | . . . Heaviest Build 33 | 13 33 33 Greatest Support 20 | 20 20 20 Greatest Overweight (x) 3 | . 1 3 Average Overweight (x) . | . . 1 Largest Inventory Capacity 15 | 8 15 15 Average Capacity 10 | 6 10 15 Most Carried 11 | 3 11 11 Average Carried 6 | . 6 11 Final Capacity 15 | 8 15 15 Final Carried 11 | 1 11 11 Class Distribution -------------------- 100% | Mutant Dominant Class ---------------- Mutant | -10/Materials Mutant | -10/Mines Resources | -11 -10 -10 ----------- Run | Yrd Mat Min Matter Collected 958 | 236 678 44 Remotely . | . . . Salvage Created 601 | . 601 . Parts 44 | . 44 . Haulers Intercepted 1 | . 1 . Recyclers Shooed 3 | . 3 . Parts Field Recycled . | . . . Retrieved Matter . | . . . Parts Self-Destructed . | . . . Prevented . | . . . Kills | -11 -10 -10 ------- Run | Yrd Mat Min Combat Hostiles Destroyed 20 | . 20 . Guns 7 | . 7 . Cannons 2 | . 2 . AOE 11 | . 11 . Classes Destroyed 7 | . 7 . Worker 1 | . 1 . Tunneler 1 | . 1 . Hauler 1 | . 1 . Operator 3 | . 3 . Watcher 3 | . 3 . Swarmer 3 | . 3 . Grunt 17 | . 17 . Best Kill Streak 5 | . 5 . Combat Bots Only 4 | . 4 . Max Kills in Single Turn 2 | . 2 . Gunslinging . | . . . Exploded 2 | . 2 . Melee . | . . . Uniques/NPCs Destroyed . | . . . Combat | -11 -10 -10 -------- Run | Yrd Mat Min Hostile Shots Fired 138 | . 118 20 Missed 40 | . 33 7 Damage Taken 1176 | . 985 191 Core 256 | . 200 56 Absorbed by Shields . | . . . Core Remaining (%) 100 | 100 . . Volleys Fired 105 | . 103 2 Largest 2 | . 2 2 Hottest 59 | . 59 53 Shots Fired 172 | . 168 4 Gun 139 | . 137 2 Cannon 13 | . 13 . Launcher 20 | . 18 2 Special . | . . . Kinetic 152 | . 150 2 Thermal . | . . . Explosive 20 | . 18 2 Electromagnetic . | . . . Robot Hit Streak 12 | . 12 3 Robot Miss Streak 4 | . 4 3 Penetration Max . | . . . Secondary Targets 1 | . 1 . Max Gunslinging Chain 1 | . 1 . Shots Hit Robots 99 | . 98 1 Core Hits 53 | . 52 1 Critical Kills . | . . . Critical Parts Destroyed . | . . . Critical Strikes . | . . . Melee Attacks . | . . . Impact . | . . . Slashing . | . . . Piercing . | . . . Sneak Attacks . | . . . Combat Hostiles . | . . . Follow-up Attacks . | . . . Damage Inflicted 2175 | . 2085 90 Guns 862 | . 850 12 Cannons 130 | . 130 . Explosions 1183 | . 1105 78 Melee . | . . . Ramming . | . . . Kinetic 992 | . 980 12 Thermal . | . . . Explosive 1183 | . 1105 78 Electromagnetic . | . . . Impact . | . . . Slashing . | . . . Piercing . | . . . Highest Corruption . | . . . Average Corruption . | . . . Corruption Purged . | . . . Corruption Blocked . | . . . Overload Shots . | . . . Overflow Damage 7 | . 7 . Projectiles . | . . . Explosions 7 | . 7 . Melee . | . . . Knockbacks 3 | . 3 . Impact . | . . . Kinetic 3 | . 3 . Secondary . | . . . Self-Inflicted Damage 66 | . 33 33 Shots 3 | . 2 1 Rammed . | . . . Targets Rammed . | . . . Kicked . | . . . Crushed . | . . . Highest Temperature 110 | . 110 13 Average Temperature 24 | . 24 6 Received Heat Transfer 573 | . 483 90 Siege Activations . | . . . Robots Corrupted . | . . . Combat Hostiles . | . . . Parts Fried . | . . . Impact Corruptions . | . . . Robots Melted . | . . . Combat Hostiles . | . . . Parts Melted . | . . . Heat Transferred . | . . . Parts Sabotaged . | . . . Parts Stolen . | . . . Parts Stripped . | . . . Power Chain Reactions . | . . . Alert | -11 -10 -10 ------- Run | Yrd Mat Min Peak Influence 366 | . 366 20 Initial 12 | . . 12 Average 98 | . 107 11 Maximum Alert Level 1 | . 1 . Low Security (%) 79 | 100 77 100 Level 1 20 | . 22 . Level 2 . | . . . Level 3 . | . . . Level 4 . | . . . Level 5 . | . . . High Security . | . . . Max Security . | . . . Squads Dispatched 6 | . 6 . Investigation 3 | . 3 . Extermination . | . . . Reinforcement 3 | . 3 . Assault . | . . . Garrison . | . . . Intercept . | . . . Searches Triggered . | . . . Construction Impeded . | . . . Haulers Reinforced . | . . . Active Scanning Responses . | . . . Cargo Convoy Interrupts . | . . . Stealth | -11 -10 -10 --------- Run | Yrd Mat Min Distress Signals . | . . . Communications Jammed . | . . . Distress Signals . | . . . Times Spotted 40 | . 38 2 Peak Tracking Total 4 | . 4 2 Tactical Retreats . | . . . Traps | -11 -10 -10 ------- Run | Yrd Mat Min Traps Triggered 5 | . 5 . Indirectly . | . . . Trap Hack Attempts . | . . . Triggered . | . . . Disarmed . | . . . Reprogrammed . | . . . Reused . | . . . Traps Extracted . | . . . Installed . | . . . Triggered . | . . . Machines | -11 -10 -10 ---------- Run | Yrd Mat Min Machines Disabled 1 | . 1 . Max in Single Turn 1 | . 1 . Machines Repaired . | . . . Machines Dismantled . | . . . Machines Sabotaged . | . . . Overloaded Fab Kills . | . . . Hacking | -11 -10 -10 --------- Run | Yrd Mat Min Machines Accessed 2 | . 2 . Terminals 1 | . 1 . Fabricators . | . . . Repair Stations . | . . . Recycling Units 1 | . 1 . Scanalyzers . | . . . Garrison Access . | . . . Total Hacks 3 | . 3 . Successful 1 | . 1 . Failed 2 | . 2 . Catastrophic 1 | . 1 . Database Lockouts . | . . . Manual 2 | . 2 . Terminals 2 | . 2 . Fabricators . | . . . Repair Stations . | . . . Recycling Units 1 | . 1 . Scanalyzers . | . . . Garrison Access . | . . . Terminal Hacks . | . . . Fabricator Hacks . | . . . Repair Station Hacks . | . . . Recycling Unit Hacks 1 | . 1 . Retrieve Components 1 | . 1 . Scanalyzer . | . . . Garrison Access Hacks . | . . . Unauthorized Hacks . | . . . Terminals . | . . . Fabricators . | . . . Repair Stations . | . . . Recycling Units . | . . . Scanalyzers . | . . . Garrison Access . | . . . Data Cores Recovered . | . . . Used . | . . . Hacking Detections 1 | . 1 . Full Trace Events 1 | . 1 . Feedback Events . | . . . Feedback Blocked . | . . . Robot Schematics Acquired . | . . . Robots Built . | . . . Authchips . | . . . Time . | . . . Total Robot Build Rating . | . . . Part Schematics Acquired . | . . . Parts Built . | . . . Authchips . | . . . Time . | . . . Total Part Build Rating . | . . . Parts Repaired . | . . . Time . | . . . Parts Recycled . | . . . Recycled Matter . | . . . Retrieved Matter . | . . . Retrieved Components 9 | . 9 . Parts Scanalyzed . | . . . Part Schematics Acquired . | . . . Parts Damaged . | . . . Bothacking | -11 -10 -10 ------------ Run | Yrd Mat Min Used RIF Installer . | . . . Robots Hacked . | . . . Non-combat . | . . . Combat . | . . . Robot Hacks Applied . | . . . Relay Couplers Released . | . . . Fabnet Peak Effective % . | . . . Robots Rewired . | . . . Allies Hacked . | . . . Hacks Repelled . | . . . Allies | -11 -10 -10 -------- Run | Yrd Mat Min Total Allies . | . . . Largest Group . | . . . Highest-Rated Group . | . . . Highest-Rated Ally . | . . . Total Orders . | . . . Ally Attacks . | . . . Total Damage . | . . . Kills . | . . . Allies Corrupted . | . . . Allies Melted . | . . . Intel | -11 -10 -10 ------- Run | Yrd Mat Min Robot Analysis Total . | . . . Derelict Logs Recovered . | . . . Drone Launches . | . . . Drone Recoveries . | . . . Exploration | -11 -10 -10 ------------- Run | Yrd Mat Min Turns Passed 3300 | 71 3010 219 Spaces Moved 2011 | 52 1850 109 Core 5 | 5 . . Treads . | . . . Legs 2006 | 47 1850 109 Wheels . | . . . Hover . | . . . Flight . | . . . Fastest Speed 50 | 50 120 190 Average Speed 138 | 113 136 193 Slowest Speed 330 | 120 190 330 Overloaded Moves . | . . . Propulsion Burnouts . | . . . Robots Hopped . | . . . Cave-ins Triggered . | . . . Exploration Rate (%) 48 | 5 100 41 Regions Visited 2 Branch Regions 1 Pre-discovered Areas . | . . . Known Exits Taken . | . . . Unknown Exits Taken 2 | 1 1 . Scrap Searched 2 | . . 2 Spaces Dug 8 | . 8 . Terrain Destroyed 84 | . 64 20 Melee . | . . . Projectile 1 | . 1 . AOE 83 | . 63 20 Terrain Rammed . | . . . Walls Destroyed . | . . . Machines Disabled . | . . . Actions | -11 -10 -10 --------- Run | Yrd Mat Min Total 2357 | 64 2181 112 Wait 180 | . 180 . Move 2009 | 51 1849 109 Hop . | . . . Pick Up 30 | 7 23 . Fast Attach 1 | . 1 . Attach 14 | 6 8 . Detach 1 | . 1 . Swap 10 | . 9 1 Drop 7 | . 7 . Fire 105 | . 103 2 Melee . | . . . Ram . | . . . Kick . | . . . Crush . | . . . Escape Stasis . | . . . Rewire . | . . . Trap . | . . . Miscellaneous . | . . . Route ------- -11/Scrapyard -10/Materials (discovered 5 exits: [*Mat x3] / [*Min] / [*Sub]) -10/Mines (discovered 1 exit: [*Mat]) History --------- Turn | Location | Event 4 | -11/Scrapyard | Discovered new exit (range 15) 72 | -11/Scrapyard | Entered Materials 264 | -10/Materials | Discovered new exit (range 16) 306 | -10/Materials | Build established: Mutant 708 | -10/Materials | Discovered new exit (range 16) 1058 | -10/Materials | Discovered new exit (range 9) 1174 | -10/Materials | Discovered new exit (range 16) 2418 | -10/Materials | Discovered new exit (range 14) 2513 | -10/Materials | Core integrity fell below 50% 3082 | -10/Materials | Entered Mines 3280 | -10/Mines | Core integrity fell below 20% 3287 | -10/Mines | Discovered new exit (range 13) 3301 | -10/Mines | Destroyed by G-34 Mercenary with Small Laser Last Messages --------------- Recycling unit begins recycling process. LOCATION=UNKNOWN GOAL=ESCAPE Something is scanning the area. K-01 Serf collects debris. Searching scrap... Found Sml. Matter Pod. Found 23 Matter. Acquired 23 matter. K-01 Serf collects debris. T-07 Excavator is excavating. K-01 Serf collects debris. Searching scrap... Found Lgt. Treads. Found 39 Matter. Found 30 Matter. Acquired 21 matter. K-01 Serf collects debris. Aluminum Leg destroyed. EXIT=FOUND Map ----- +----------------------------------------------------+ | | | | | | | | | | | | | | | | | ?????????????????????????????????????????????????? | | ?????????????????????????????????????????????????? | | ?????????????????????????????????????????????????? | | ?????????????????????????????????????????????????? | | ??????????????????????????????###????????????????? | | ????????????????????????????? ##???????????????? | | ????????????????????????????? #???????????????? | | ????????????????????????????? #???????????????? | | ???????????????????????????? #???????????????? | | ??########?????????????????? #???????????????? | | ?## ##????????????????# #???????????????? | | ?# #???????????????? #???????????????? | | ?# #??????????????? #???????????????? | | ## ##?????????????? #???????????????? | | # ##????????????? #????????????????? | | ##????#????### #?????????????????? | | ###### # ##????????????????? | | @ #????????????????? | | $ !! ?????????? | | ## ##### !!gg ##### < ????????? | | # ## ##???# ??????? ?????????? | | # ### ##???# !! ###??????? ?????????? | | ## #?####????# ##????????? ??????????? | | ### ##?????????## # #????????????????????? | | #?# #??????############ #????????????????????? | | ### #?????## #### ##????????????????????? | | #????## ##????????????????????? | | #???## #????????????????????? | | #####???# ## ## ##????????????????????? | | ????????# """ ## ## #####?????????????????????? | | #???????# """ ## ## #?????????????????????????? | | ##?????## """ ### #?????????????????????????? | | #?????# % ##?# #?????????????????????????? | | ##????##%## ##??# ?????????????????????????? | | ##????#=### #???# #?????????????????????????? | | #????# #?# #???# #?????????????????????????? | | ##???# ## #???# ??????????????????????????? | | ##??# ## ##???? ??????????????????????????? | | ##?# ## ###????? ??????????????????????????? | | ### ## #??????? ??????????????????????????? | | # #??????? ??????????????????????????? | | ## ## ##### #??????? ??????????????????????????? | +----------------------------------------------------+ Best States ------------- Heat Dissipation 25 Energy Generation 12 Energy Capacity 265 Matter Stores 300 Matter Capacity 300 Sight Range 16 Terrain Scan Density 10 Evasion (%) 55 Offensive Hacking 10 Item Schematics ----------------- None Robot Schematics ------------------ None Fabricated ------------ Nothing Alien Tech Used ----------------- None Achievements -------------- None Challenges ------------ None Game ------ Seed StormBladeWheel Manual? 0 Play Time 00:26:54 Cumulative 4.4 hours Start 2024.04.02 @ 21:18:33 End 2024.04.02 @ 22:12:13 Sessions 1 Manual Loads 0 Difficulty Rogue Special Mode None Game No. 12 Rogue 12 Adventurer 0 Explorer 0 Win Type - Total 0 Types 0/0/0/0/0/0/0/0/0 Lore% 1 Gallery% 7 Achievement% 9 Wizard Run 0 Options --------- Layout 1 ASCII 0 Keyboard 0 Movement Mouse Keybinds 0 Fullscreen 1 Font 24/Smallcaps Map View 50x35 Zoom Use 0% Tactical HUD 0 Map Filters NONE Filters NONE Steam 1 RUN: b9295a06-9566-4540-a72f-ea0f1f4881fa